[Event "*** MasterClass Titled Tuesday Blitz"]
[Site "Chess.com"]
[Date "2017.11.07"]
[Round "1"]
[White "champ2005"]
[Black "zane33"]
[Result "1-0"]
[WhiteElo "2456"]
[BlackElo "1901"]
[TimeControl "180+2"]
[EndTime "14:05:43 PST"]
[Termination "champ2005 won by resignation"]

1. e4 {[%clk 0:03:01.9]} 1... Nf6 {[%clk 0:03:01]} 2. e5 {[%clk 0:03:01.8]} 2...
Nd5 {[%clk 0:03:02.4]} 3. d4 {[%clk 0:03:03.2]} 3... d6 {[%clk 0:03:03.2]} 4.
Nf3 {[%clk 0:03:04.3]} 4... Nc6 {[%clk 0:03:01.6]} 5. exd6 {[%clk 0:03:01.2]}
5... cxd6 {[%clk 0:03:02.3]} 6. c3 {[%clk 0:02:58.7]} 6... g6 {[%clk 0:03:03]}
7. Bd3 {[%clk 0:02:58.2]} 7... Bg7 {[%clk 0:03:04]} 8. O-O {[%clk 0:02:58.7]}
8... O-O {[%clk 0:03:05.1]} 9. Nbd2 {[%clk 0:02:56.9]} 9... e5 {[%clk
0:03:00.8]} 10. Nb3 {[%clk 0:02:53.8]} 10... f5 {[%clk 0:02:50.1]} 11. Bc4
{[%clk 0:02:49.5]} 11... Be6 {[%clk 0:02:48.5]} 12. dxe5 {[%clk 0:02:50.5]}
12... dxe5 {[%clk 0:02:48.8]} 13. Ng5 {[%clk 0:02:48.9]} 13... Qc8 {[%clk
0:01:59.7]} 14. Nxe6 {[%clk 0:02:48.6]} 14... Nce7 {[%clk 0:01:55.1]} 15. Bxd5
{[%clk 0:02:45.3]} 1-0

[Event "*** MasterClass Titled Tuesday Blitz"]
[Site "Chess.com"]
[Date "2017.11.07"]
[Round "1"]
[White "Vrolijk"]
[Black "blitzcopter"]
[Result "1-0"]
[WhiteElo "2466"]
[BlackElo "1992"]
[TimeControl "180+2"]
[EndTime "14:05:57 PST"]
[Termination "Vrolijk won by resignation"]

1. e4 {[%clk 0:03:00]} 1... c6 {[%clk 0:02:59.2]} 2. Nc3 {[%clk 0:02:57.7]} 2...
d5 {[%clk 0:03:00.3]} 3. Nf3 {[%clk 0:02:59.4]} 3... Bg4 {[%clk 0:02:59]} 4. h3
{[%clk 0:02:57.7]} 4... Bxf3 {[%clk 0:02:56.9]} 5. Qxf3 {[%clk 0:02:58.4]} 5...
e6 {[%clk 0:02:52.7]} 6. d3 {[%clk 0:02:56.9]} 6... Nf6 {[%clk 0:02:53.2]} 7.
Qg3 {[%clk 0:02:56.5]} 7... d4 {[%clk 0:02:26.4]} 8. Nd1 {[%clk 0:02:54]} 8...
Bb4+ {[%clk 0:02:11.8]} 9. c3 {[%clk 0:02:50.9]} 9... dxc3 {[%clk 0:02:13.7]}
10. bxc3 {[%clk 0:02:50.8]} 10... Qd4 {[%clk 0:02:09.9]} 11. Bd2 {[%clk
0:02:46.4]} 11... Nxe4 {[%clk 0:01:46.8]} 12. dxe4 {[%clk 0:02:39]} 12... Qxe4+
{[%clk 0:01:45.2]} 13. Ne3 {[%clk 0:02:33.8]} 13... Bd6 {[%clk 0:01:43.3]} 1-0

[Event "*** MasterClass Titled Tuesday Blitz"]
[Site "Chess.com"]
[Date "2017.11.07"]
[Round "1"]
[White "ChristoferPeterson"]
[Black "Taron_Shagbazyan"]
[Result "0-1"]
[WhiteElo "2285"]
[BlackElo "2561"]
[TimeControl "180+2"]
[EndTime "14:06:28 PST"]
[Termination "Taron_Shagbazyan won by resignation"]

1. e4 {[%clk 0:03:01.9]} 1... c5 {[%clk 0:02:59.8]} 2. Nf3 {[%clk 0:03:02.7]}
2... d6 {[%clk 0:03:01.3]} 3. d4 {[%clk 0:03:04]} 3... cxd4 {[%clk 0:03:02.7]}
4. Nxd4 {[%clk 0:03:05.9]} 4... Nf6 {[%clk 0:03:04.1]} 5. Nc3 {[%clk 0:03:07.2]}
5... a6 {[%clk 0:03:05.4]} 6. Bg5 {[%clk 0:03:08.7]} 6... Nbd7 {[%clk
0:03:05.7]} 7. f4 {[%clk 0:03:09.8]} 7... b5 {[%clk 0:03:05.2]} 8. Qf3 {[%clk
0:03:09.2]} 8... Bb7 {[%clk 0:03:06.3]} 9. O-O-O {[%clk 0:03:09.7]} 9... Rc8
{[%clk 0:03:07.2]} 10. Kb1 {[%clk 0:03:07.3]} 10... e6 {[%clk 0:03:05.2]} 11. g4
{[%clk 0:02:59.8]} 11... b4 {[%clk 0:03:03.6]} 12. Nd5 {[%clk 0:02:44.8]} 12...
exd5 {[%clk 0:03:02.5]} 13. e5 {[%clk 0:02:37.8]} 13... dxe5 {[%clk 0:03:02.1]}
14. fxe5 {[%clk 0:02:37.7]} 14... Nxe5 {[%clk 0:02:57.1]} 15. Re1 {[%clk
0:02:37.5]} 15... Ne4 {[%clk 0:02:48.1]} 16. Qf4 {[%clk 0:02:32.5]} 16... Qxg5
{[%clk 0:02:37.8]} 17. Rxe4 {[%clk 0:02:30.5]} 17... Qxf4 {[%clk 0:02:35.7]} 18.
Rxf4 {[%clk 0:02:32.4]} 18... Bd6 {[%clk 0:02:36.2]} 19. Nf5 {[%clk 0:02:31.8]}
19... Kd7 {[%clk 0:02:37]} 20. Bg2 {[%clk 0:02:23.3]} 20... g6 {[%clk
0:02:35.4]} 21. Nh6 {[%clk 0:02:23.2]} 21... Rhe8 {[%clk 0:02:28.2]} 22. Rff1
{[%clk 0:02:18.5]} 22... Re7 {[%clk 0:02:26.5]} 23. Rd1 {[%clk 0:02:17]} 23...
Nc4 {[%clk 0:02:21.2]} 24. Rhf1 {[%clk 0:02:06.1]} 0-1

[Event "*** MasterClass Titled Tuesday Blitz"]
[Site "Chess.com"]
[Date "2017.11.07"]
[Round "1"]
[White "Maitreia"]
[Black "rpragchess"]
[Result "0-1"]
[WhiteElo "2486"]
[BlackElo "2250"]
[TimeControl "180+2"]
[EndTime "14:06:30 PST"]
[Termination "rpragchess won by resignation"]

1. c4 {[%clk 0:03:01.9]} 1... e5 {[%clk 0:03:00.1]} 2. g3 {[%clk 0:02:58.4]}
2... Nf6 {[%clk 0:03:01.1]} 3. Bg2 {[%clk 0:02:59.3]} 3... c6 {[%clk 0:03:02]}
4. Nf3 {[%clk 0:02:59.9]} 4... e4 {[%clk 0:03:02.6]} 5. Nd4 {[%clk 0:03:01.2]}
5... Qb6 {[%clk 0:03:03.2]} 6. Nc2 {[%clk 0:03:01.2]} 6... d5 {[%clk 0:03:03.5]}
7. cxd5 {[%clk 0:03:00.4]} 7... cxd5 {[%clk 0:03:04.6]} 8. O-O {[%clk
0:03:02.3]} 8... Nc6 {[%clk 0:03:03.4]} 9. Nc3 {[%clk 0:03:02.5]} 9... Be7
{[%clk 0:03:01.1]} 10. d3 {[%clk 0:03:03.7]} 10... Bf5 {[%clk 0:03:02.3]} 11.
dxe4 {[%clk 0:02:54.7]} 11... dxe4 {[%clk 0:03:02.6]} 12. Ne3 {[%clk 0:02:55.8]}
12... Rd8 {[%clk 0:02:48.5]} 13. Qc2 {[%clk 0:02:49.9]} 13... Nd4 {[%clk
0:02:47.3]} 14. Qb1 {[%clk 0:02:46.4]} 14... Bg6 {[%clk 0:02:46.5]} 15. b3
{[%clk 0:02:23]} 15... Bb4 {[%clk 0:02:42.1]} 16. Nxe4 {[%clk 0:02:08]} 16...
Nxe2+ {[%clk 0:02:39.9]} 17. Kh1 {[%clk 0:02:09]} 17... Nxe4 {[%clk 0:02:40.9]}
18. Bxe4 {[%clk 0:02:10.9]} 18... Nc3 {[%clk 0:02:41.9]} 19. Bxg6 {[%clk
0:02:04.1]} 19... Nxb1 {[%clk 0:02:42.7]} 20. Bxb1 {[%clk 0:02:06]} 20... Bc3
{[%clk 0:02:40]} 21. Ba3 {[%clk 0:01:52.1]} 21... Bxa1 {[%clk 0:02:36]} 22. Nd5
{[%clk 0:01:53.1]} 22... Rxd5 {[%clk 0:02:34.4]} 0-1

[Event "*** MasterClass Titled Tuesday Blitz"]
[Site "Chess.com"]
[Date "2017.11.07"]
[Round "1"]
[White "ChadBiryani"]
[Black "Incognito_Knight"]
[Result "0-1"]
[WhiteElo "2194"]
[BlackElo "2499"]
[TimeControl "180+2"]
[EndTime "14:06:48 PST"]
[Termination "Incognito_Knight won by resignation"]

1. d4 {[%clk 0:03:01.9]} 1... Nf6 {[%clk 0:02:57.8]} 2. Bf4 {[%clk 0:03:02]}
2... c5 {[%clk 0:02:57.2]} 3. d5 {[%clk 0:02:59.9]} 3... e6 {[%clk 0:02:56.6]}
4. dxe6 {[%clk 0:02:58.8]} 4... fxe6 {[%clk 0:02:57.1]} 5. c4 {[%clk 0:02:52.9]}
5... Nc6 {[%clk 0:02:57.9]} 6. Nc3 {[%clk 0:02:53]} 6... Be7 {[%clk 0:02:47.1]}
7. e3 {[%clk 0:02:44.8]} 7... O-O {[%clk 0:02:47.4]} 8. h3 {[%clk 0:02:38.2]}
8... d5 {[%clk 0:02:42]} 9. Nf3 {[%clk 0:02:38.1]} 9... d4 {[%clk 0:02:35.7]}
10. exd4 {[%clk 0:02:35.3]} 10... cxd4 {[%clk 0:02:37.6]} 11. Nb5 {[%clk
0:02:32]} 11... e5 {[%clk 0:02:38.6]} 12. Nxe5 {[%clk 0:02:03.9]} 12... Bb4+
{[%clk 0:02:34]} 13. Ke2 {[%clk 0:01:56.2]} 13... Re8 {[%clk 0:02:31.9]} 14. a3
{[%clk 0:01:46.8]} 14... Bf8 {[%clk 0:02:22.4]} 15. Qb3 {[%clk 0:01:15.3]} 15...
Nxe5 {[%clk 0:02:14.9]} 0-1

[Event "*** MasterClass Titled Tuesday Blitz"]
[Site "Chess.com"]
[Date "2017.11.07"]
[Round "1"]
[White "josiwales"]
[Black "Alexander_Donchenko"]
[Result "0-1"]
[WhiteElo "2377"]
[BlackElo "2659"]
[TimeControl "180+2"]
[EndTime "14:07:24 PST"]
[Termination "Alexander_Donchenko won by resignation"]

1. e4 {[%clk 0:03:01.9]} 1... c5 {[%clk 0:02:59.4]} 2. Nc3 {[%clk 0:02:59.7]}
2... a6 {[%clk 0:03:00]} 3. g3 {[%clk 0:02:56.2]} 3... b5 {[%clk 0:03:00.9]} 4.
Bg2 {[%clk 0:02:58.1]} 4... Bb7 {[%clk 0:03:00.6]} 5. d3 {[%clk 0:02:58.1]} 5...
e6 {[%clk 0:03:01.8]} 6. f4 {[%clk 0:02:57.1]} 6... b4 {[%clk 0:03:03.1]} 7.
Nce2 {[%clk 0:02:57.9]} 7... d5 {[%clk 0:03:04.4]} 8. e5 {[%clk 0:02:58.8]} 8...
Nh6 {[%clk 0:03:05.7]} 9. Nf3 {[%clk 0:02:52.8]} 9... Nf5 {[%clk 0:03:06.9]} 10.
O-O {[%clk 0:02:54.1]} 10... h5 {[%clk 0:03:07.9]} 11. h3 {[%clk 0:02:54.4]}
11... Be7 {[%clk 0:03:07.7]} 12. d4 {[%clk 0:02:54.2]} 12... Nc6 {[%clk
0:03:06.8]} 13. c3 {[%clk 0:02:52.4]} 13... Qb6 {[%clk 0:03:05.4]} 14. a3 {[%clk
0:02:46.2]} 14... cxd4 {[%clk 0:02:42.1]} 15. cxd4 {[%clk 0:02:44]} 15... Ncxd4
{[%clk 0:02:35.8]} 16. Nexd4 {[%clk 0:02:42]} 16... Bc5 {[%clk 0:02:36.8]} 17.
Kh2 {[%clk 0:02:25.5]} 17... Nxd4 {[%clk 0:02:30.7]} 18. Nxd4 {[%clk 0:02:25.2]}
18... Bxd4 {[%clk 0:02:31.6]} 19. Qd3 {[%clk 0:02:19.5]} 19... a5 {[%clk
0:02:24.9]} 20. axb4 {[%clk 0:02:18]} 20... Ba6 {[%clk 0:02:23.5]} 21. b5 {[%clk
0:02:13.4]} 21... Bxb5 {[%clk 0:02:23.8]} 22. Qb3 {[%clk 0:02:14]} 22... Bxf1
{[%clk 0:02:23.3]} 23. Qxb6 {[%clk 0:02:11.9]} 23... Bxb6 {[%clk 0:02:25.2]} 24.
Bxf1 {[%clk 0:02:13.5]} 24... Ke7 {[%clk 0:02:23.3]} 25. b3 {[%clk 0:02:12.8]}
25... Rhc8 {[%clk 0:02:22.5]} 26. Ba3+ {[%clk 0:02:09.4]} 26... Bc5 {[%clk
0:02:23.7]} 27. Bb2 {[%clk 0:02:06.8]} 27... Bb4 {[%clk 0:02:23.3]} 28. Bd3
{[%clk 0:02:06.4]} 28... g6 {[%clk 0:02:17.3]} 29. Bd4 {[%clk 0:01:59.8]} 29...
Bc3 {[%clk 0:02:11.8]} 0-1

[Event "*** MasterClass Titled Tuesday Blitz"]
[Site "Chess.com"]
[Date "2017.11.07"]
[Round "1"]
[White "fidetrainerNET"]
[Black "chessdude"]
[Result "0-1"]
[WhiteElo "2040"]
[BlackElo "2473"]
[TimeControl "180+2"]
[EndTime "14:07:44 PST"]
[Termination "chessdude won by checkmate"]

1. e4 {[%clk 0:03:01.9]} 1... c5 {[%clk 0:02:59.7]} 2. Nf3 {[%clk 0:03:03.8]}
2... d6 {[%clk 0:03:00.8]} 3. c4 {[%clk 0:03:04.1]} 3... e5 {[%clk 0:02:53.3]}
4. Nc3 {[%clk 0:03:06]} 4... Nc6 {[%clk 0:02:54]} 5. h3 {[%clk 0:03:06.4]} 5...
g6 {[%clk 0:02:53.8]} 6. d3 {[%clk 0:03:07.2]} 6... Bg7 {[%clk 0:02:54.4]} 7.
Be2 {[%clk 0:03:08.4]} 7... Nge7 {[%clk 0:02:55.3]} 8. O-O {[%clk 0:03:08.9]}
8... O-O {[%clk 0:02:53.1]} 9. a3 {[%clk 0:03:09.8]} 9... a5 {[%clk 0:02:53]}
10. Nd5 {[%clk 0:03:09.8]} 10... Nxd5 {[%clk 0:02:53]} 11. cxd5 {[%clk
0:03:10.4]} 11... Ne7 {[%clk 0:02:52.1]} 12. Bd2 {[%clk 0:03:09.8]} 12... b5
{[%clk 0:02:50.4]} 13. b4 {[%clk 0:03:10.6]} 13... cxb4 {[%clk 0:02:47.2]} 14.
axb4 {[%clk 0:03:11.3]} 14... a4 {[%clk 0:02:48.8]} 15. d4 {[%clk 0:03:11.1]}
15... exd4 {[%clk 0:02:40.6]} 16. Bxb5 {[%clk 0:03:11.5]} 16... f5 {[%clk
0:02:33.1]} 17. exf5 {[%clk 0:02:34.9]} 17... Bxf5 {[%clk 0:02:30.3]} 18. Rxa4
{[%clk 0:02:34]} 18... Kh8 {[%clk 0:02:29.8]} 19. Ng5 {[%clk 0:02:33]} 19...
Rxa4 {[%clk 0:02:26.5]} 20. Qxa4 {[%clk 0:02:32.8]} 20... Nxd5 {[%clk
0:02:27.5]} 21. Bc6 {[%clk 0:02:28.5]} 21... Ne3 {[%clk 0:02:16.7]} 22. Nxh7
{[%clk 0:02:20]} 22... Nxf1 {[%clk 0:02:06.6]} 23. Nxf8 {[%clk 0:02:18.3]} 23...
Nxd2 {[%clk 0:02:07.6]} 24. g4 {[%clk 0:02:16.8]} 24... Qxf8 {[%clk 0:02:03]}
25. gxf5 {[%clk 0:02:16.1]} 25... Qxf5 {[%clk 0:02:04]} 26. Qa8+ {[%clk
0:02:04]} 26... Kh7 {[%clk 0:02:04.8]} 27. b5 {[%clk 0:02:03.9]} 27... Qb1+
{[%clk 0:01:58.1]} 28. Kh2 {[%clk 0:02:01]} 28... Be5+ {[%clk 0:01:58]} 29. Kg2
{[%clk 0:01:49.8]} 29... Qf1# {[%clk 0:01:51.8]} 0-1

[Event "*** MasterClass Titled Tuesday Blitz"]
[Site "Chess.com"]
[Date "2017.11.07"]
[Round "1"]
[White "kikydu96"]
[Black "VerdeNotte"]
[Result "0-1"]
[WhiteElo "2407"]
[BlackElo "2680"]
[TimeControl "180+2"]
[EndTime "14:07:57 PST"]
[Termination "VerdeNotte won by resignation"]

1. e4 {[%clk 0:03:01.9]} 1... c5 {[%clk 0:02:56.1]} 2. Nf3 {[%clk 0:03:02]} 2...
d6 {[%clk 0:02:56.7]} 3. d4 {[%clk 0:03:02.2]} 3... cxd4 {[%clk 0:02:58.6]} 4.
Nxd4 {[%clk 0:03:03.8]} 4... Nf6 {[%clk 0:02:59.8]} 5. Nc3 {[%clk 0:03:04.1]}
5... g6 {[%clk 0:03:01.2]} 6. g3 {[%clk 0:03:00.2]} 6... Nc6 {[%clk 0:02:57.9]}
7. Bg2 {[%clk 0:02:59.2]} 7... Nxd4 {[%clk 0:02:56.2]} 8. Qxd4 {[%clk
0:02:58.9]} 8... Bg7 {[%clk 0:02:58.1]} 9. O-O {[%clk 0:02:59.1]} 9... O-O
{[%clk 0:02:58.4]} 10. h3 {[%clk 0:02:55.6]} 10... Be6 {[%clk 0:02:58.6]} 11.
Qd1 {[%clk 0:02:40.5]} 11... Nd7 {[%clk 0:02:57.3]} 12. Be3 {[%clk 0:02:40.6]}
12... Ne5 {[%clk 0:02:51.5]} 13. Nd5 {[%clk 0:02:34.8]} 13... Nc4 {[%clk
0:02:49.5]} 14. Bd4 {[%clk 0:02:35]} 14... Nxb2 {[%clk 0:02:48.9]} 15. Bxb2
{[%clk 0:02:33]} 15... Bxb2 {[%clk 0:02:50.8]} 16. Rb1 {[%clk 0:02:34.2]} 16...
Bg7 {[%clk 0:02:43.3]} 17. Rxb7 {[%clk 0:02:33.8]} 17... Re8 {[%clk 0:02:36.6]}
18. Nc7 {[%clk 0:02:30.6]} 18... Bc8 {[%clk 0:02:29.7]} 19. Nxe8 {[%clk
0:02:26.2]} 19... Bxb7 {[%clk 0:02:30.7]} 20. Nxg7 {[%clk 0:02:26.7]} 20... Kxg7
{[%clk 0:02:32.6]} 21. Qd4+ {[%clk 0:02:25.6]} 21... e5 {[%clk 0:02:27.2]} 22.
Qd3 {[%clk 0:02:25]} 22... Qb6 {[%clk 0:02:19.8]} 23. Qb3 {[%clk 0:02:21]} 23...
Rc8 {[%clk 0:02:14.1]} 24. Rd1 {[%clk 0:02:14.5]} 24... Rc6 {[%clk 0:02:12.5]}
25. Bf1 {[%clk 0:02:06.4]} 25... Qc7 {[%clk 0:02:05.3]} 26. Bd3 {[%clk
0:01:50.8]} 26... Rb6 {[%clk 0:01:57.7]} 27. Qa3 {[%clk 0:01:50.9]} 27... Qc5
{[%clk 0:01:50.7]} 28. Qxa7 {[%clk 0:01:46.1]} 28... Rb1 {[%clk 0:01:50.3]} 0-1

[Event "*** MasterClass Titled Tuesday Blitz"]
[Site "Chess.com"]
[Date "2017.11.07"]
[Round "1"]
[White "Too_Stupid_To_Play"]
[Black "Rodalquilar"]
[Result "0-1"]
[WhiteElo "2198"]
[BlackElo "2506"]
[TimeControl "180+2"]
[EndTime "14:08:11 PST"]
[Termination "Rodalquilar won by resignation"]

1. Nf3 {[%clk 0:03:01.9]} 1... d5 {[%clk 0:03:00.6]} 2. c4 {[%clk 0:03:03.3]}
2... e6 {[%clk 0:03:01.6]} 3. g3 {[%clk 0:03:04.8]} 3... Nf6 {[%clk 0:03:02.9]}
4. Bg2 {[%clk 0:03:06.7]} 4... Be7 {[%clk 0:03:04.4]} 5. O-O {[%clk 0:03:08.2]}
5... O-O {[%clk 0:03:05.7]} 6. d4 {[%clk 0:03:09.1]} 6... dxc4 {[%clk 0:03:07]}
7. Ne5 {[%clk 0:03:10.2]} 7... Qd6 {[%clk 0:03:08]} 8. Nxc4 {[%clk 0:03:08.8]}
8... Qa6 {[%clk 0:03:09.1]} 9. b3 {[%clk 0:03:06.7]} 9... Rd8 {[%clk 0:03:08.9]}
10. Bb2 {[%clk 0:02:59]} 10... c5 {[%clk 0:03:09.2]} 11. e3 {[%clk 0:02:58.7]}
11... Nc6 {[%clk 0:03:07.6]} 12. Qc1 {[%clk 0:02:52.7]} 12... cxd4 {[%clk
0:03:07.8]} 13. Bxc6 {[%clk 0:02:52.5]} 13... Qxc6 {[%clk 0:03:04.9]} 14. Bxd4
{[%clk 0:02:53.4]} 14... Qf3 {[%clk 0:02:43.9]} 15. Ne5 {[%clk 0:02:51]} 15...
Qh5 {[%clk 0:02:45.1]} 16. Qc7 {[%clk 0:02:43.9]} 16... Nd5 {[%clk 0:02:22]} 17.
Qa5 {[%clk 0:02:20.4]} 17... b6 {[%clk 0:02:16.9]} 18. Qa4 {[%clk 0:02:16.8]}
18... Bb7 {[%clk 0:02:13.7]} 19. Nc6 {[%clk 0:02:17.7]} 19... Rdc8 {[%clk
0:01:47.6]} 20. Rc1 {[%clk 0:01:53.1]} 20... Rxc6 {[%clk 0:01:39.4]} 21. Rxc6
{[%clk 0:01:50.7]} 21... Qd1+ {[%clk 0:01:40.1]} 22. Kg2 {[%clk 0:01:49.6]}
22... Nb4 {[%clk 0:01:41.1]} 23. Nc3 {[%clk 0:01:32.4]} 23... Qxa1 {[%clk
0:01:36.6]} 24. Nd5 {[%clk 0:01:29.8]} 24... Bxc6 {[%clk 0:01:30.7]} 25. Qxc6
{[%clk 0:01:25.9]} 25... Nxc6 {[%clk 0:01:32.6]} 26. Nxe7+ {[%clk 0:01:24.4]}
26... Nxe7 {[%clk 0:01:34.5]} 27. Bxa1 {[%clk 0:01:25.8]} 27... Rc8 {[%clk
0:01:35.7]} 0-1

[Event "*** MasterClass Titled Tuesday Blitz"]
[Site "Chess.com"]
[Date "2017.11.07"]
[Round "1"]
[White "Koksik_13"]
[Black "Hasangatin_Ramil"]
[Result "1-0"]
[WhiteElo "1908"]
[BlackElo "2434"]
[TimeControl "180+2"]
[EndTime "14:08:18 PST"]
[Termination "Koksik_13 won by resignation"]

1. e4 {[%clk 0:03:01.9]} 1... d5 {[%clk 0:03:00.4]} 2. exd5 {[%clk 0:03:01.9]}
2... Qxd5 {[%clk 0:03:02.3]} 3. Nc3 {[%clk 0:03:02]} 3... Qd6 {[%clk 0:03:03.4]}
4. d4 {[%clk 0:03:03.6]} 4... Nf6 {[%clk 0:03:04.9]} 5. Nf3 {[%clk 0:03:04.8]}
5... c6 {[%clk 0:03:06.1]} 6. Be2 {[%clk 0:03:05.8]} 6... Bg4 {[%clk 0:03:06.5]}
7. Ne5 {[%clk 0:03:06.5]} 7... Bxe2 {[%clk 0:03:05.5]} 8. Qxe2 {[%clk
0:03:06.8]} 8... Qxd4 {[%clk 0:03:04.7]} 9. O-O {[%clk 0:03:07.4]} 9... Nbd7
{[%clk 0:03:02.6]} 10. Nxd7 {[%clk 0:03:07.8]} 10... Qxd7 {[%clk 0:03:02.7]} 11.
Rd1 {[%clk 0:03:08.6]} 11... Qc7 {[%clk 0:03:03.6]} 12. Bg5 {[%clk 0:03:07.7]}
12... e6 {[%clk 0:02:57.4]} 13. Bxf6 {[%clk 0:03:07.4]} 13... gxf6 {[%clk
0:02:59.3]} 14. Rd3 {[%clk 0:03:05.8]} 14... Be7 {[%clk 0:02:59.8]} 15. Rad1
{[%clk 0:03:05.6]} 15... Rd8 {[%clk 0:02:57.3]} 16. Rxd8+ {[%clk 0:03:04.1]}
16... Bxd8 {[%clk 0:02:59.2]} 17. Ne4 {[%clk 0:03:03.6]} 17... Be7 {[%clk
0:02:59.9]} 18. Qe3 {[%clk 0:02:41.8]} 18... f5 {[%clk 0:02:46]} 19. Nc5 {[%clk
0:02:13.5]} 19... Qb6 {[%clk 0:01:29.6]} 20. Qe5 {[%clk 0:02:11.3]} 20... O-O
{[%clk 0:01:27.4]} 21. Nd7 {[%clk 0:02:05.8]} 21... Rd8 {[%clk 0:01:28]} 22. Rd3
{[%clk 0:02:05.5]} 22... Rxd7 {[%clk 0:01:12.3]} 23. Rxd7 {[%clk 0:02:00.3]}
23... Bf8 {[%clk 0:01:02.8]} 24. Qf6 {[%clk 0:01:58.1]} 24... Qb4 {[%clk
0:00:55.9]} 25. Qxf7+ {[%clk 0:01:57.4]} 1-0

[Event "*** MasterClass Titled Tuesday Blitz"]
[Site "Chess.com"]
[Date "2017.11.07"]
[Round "1"]
[White "wanyaland"]
[Black "ArnaudovP"]
[Result "1-0"]
[WhiteElo "2238"]
[BlackElo "2494"]
[TimeControl "180+2"]
[EndTime "14:08:43 PST"]
[Termination "wanyaland won by resignation"]

1. Nf3 {[%clk 0:03:01.9]} 1... Nf6 {[%clk 0:03:00.4]} 2. g3 {[%clk 0:03:02.4]}
2... d5 {[%clk 0:03:00.6]} 3. Bg2 {[%clk 0:03:02.9]} 3... e6 {[%clk 0:03:01.7]}
4. c4 {[%clk 0:03:01.4]} 4... d4 {[%clk 0:03:01.9]} 5. O-O {[%clk 0:02:59.1]}
5... c5 {[%clk 0:03:03.4]} 6. e3 {[%clk 0:02:59.9]} 6... Nc6 {[%clk 0:03:04.2]}
7. a3 {[%clk 0:03:00.1]} 7... a5 {[%clk 0:03:01.4]} 8. exd4 {[%clk 0:02:59]}
8... cxd4 {[%clk 0:03:01.8]} 9. d3 {[%clk 0:03:00.9]} 9... e5 {[%clk 0:03:02.5]}
10. Nxe5 {[%clk 0:02:55.6]} 10... Nxe5 {[%clk 0:03:02.7]} 11. Re1 {[%clk
0:02:57.2]} 11... Bd6 {[%clk 0:02:25.8]} 12. f4 {[%clk 0:02:57]} 12... Bg4
{[%clk 0:02:19.7]} 13. Qc2 {[%clk 0:02:56.9]} 13... Nd7 {[%clk 0:02:18]} 14.
fxe5 {[%clk 0:02:56.5]} 14... Nxe5 {[%clk 0:02:14.1]} 15. Bf4 {[%clk 0:02:57.1]}
15... Qe7 {[%clk 0:02:08.4]} 16. Bxe5 {[%clk 0:02:56.6]} 16... Bxe5 {[%clk
0:02:07.9]} 17. Bxb7 {[%clk 0:02:49.5]} 17... O-O {[%clk 0:02:03.8]} 18. Bxa8
{[%clk 0:02:44.6]} 18... Rxa8 {[%clk 0:02:04.3]} 19. Qf2 {[%clk 0:02:45.1]}
19... Qc7 {[%clk 0:01:55.7]} 20. Nd2 {[%clk 0:02:41.3]} 20... h5 {[%clk
0:01:55.7]} 21. Nf3 {[%clk 0:02:39.8]} 21... Bf6 {[%clk 0:01:54.8]} 22. b4
{[%clk 0:02:34]} 22... Qd7 {[%clk 0:01:40.3]} 23. b5 {[%clk 0:02:29.1]} 23...
Qf5 {[%clk 0:01:40.6]} 24. Ne5 {[%clk 0:02:11.3]} 24... Qh7 {[%clk 0:01:31.9]}
25. Nxg4 {[%clk 0:02:10.9]} 25... hxg4 {[%clk 0:01:31.9]} 26. Re4 {[%clk
0:02:09]} 26... Bg5 {[%clk 0:01:27.7]} 27. Rae1 {[%clk 0:02:05.1]} 27... Be3
{[%clk 0:01:24.9]} 28. R1xe3 {[%clk 0:02:05.8]} 28... dxe3 {[%clk 0:01:25.4]}
29. Qxe3 {[%clk 0:02:07.7]} 29... Rf8 {[%clk 0:01:26.1]} 30. b6 {[%clk 0:02:02]}
30... Qg6 {[%clk 0:01:26.3]} 31. b7 {[%clk 0:02:00.8]} 31... Qd6 {[%clk
0:01:26.6]} 32. Re8 {[%clk 0:01:55.6]} 1-0

[Event "*** MasterClass Titled Tuesday Blitz"]
[Site "Chess.com"]
[Date "2017.11.07"]
[Round "1"]
[White "Zufi1811"]
[Black "BilodeauA"]
[Result "0-1"]
[WhiteElo "2438"]
[BlackElo "2807"]
[TimeControl "180+2"]
[EndTime "14:08:46 PST"]
[Termination "BilodeauA won by resignation"]

1. e4 {[%clk 0:03:01.9]} 1... c5 {[%clk 0:03:00.4]} 2. Nf3 {[%clk 0:03:03.2]}
2... Nc6 {[%clk 0:03:01.3]} 3. Bb5 {[%clk 0:03:02.5]} 3... e6 {[%clk 0:03:02]}
4. O-O {[%clk 0:03:01.7]} 4... Nge7 {[%clk 0:03:02.9]} 5. Re1 {[%clk 0:03:03.2]}
5... Nd4 {[%clk 0:03:02]} 6. Nxd4 {[%clk 0:03:01.8]} 6... cxd4 {[%clk
0:03:02.9]} 7. c3 {[%clk 0:03:01.9]} 7... a6 {[%clk 0:03:02.9]} 8. Bf1 {[%clk
0:02:54]} 8... Nc6 {[%clk 0:03:03.6]} 9. d3 {[%clk 0:02:54.1]} 9... Bc5 {[%clk
0:03:04.9]} 10. Nd2 {[%clk 0:02:54.8]} 10... O-O {[%clk 0:03:03.7]} 11. a3
{[%clk 0:02:51.3]} 11... d6 {[%clk 0:03:01.6]} 12. b4 {[%clk 0:02:48.4]} 12...
dxc3 {[%clk 0:02:51.4]} 13. bxc5 {[%clk 0:02:48.7]} 13... cxd2 {[%clk
0:02:52.4]} 14. Qxd2 {[%clk 0:02:43.5]} 14... dxc5 {[%clk 0:02:53.6]} 15. Bb2
{[%clk 0:02:42.6]} 15... e5 {[%clk 0:02:49.4]} 16. Rac1 {[%clk 0:02:38.7]} 16...
b6 {[%clk 0:02:50.2]} 17. f4 {[%clk 0:02:34.1]} 17... f6 {[%clk 0:02:50.9]} 18.
Be2 {[%clk 0:02:31.1]} 18... Nd4 {[%clk 0:02:50.2]} 19. Bd1 {[%clk 0:02:30.7]}
19... Be6 {[%clk 0:02:49.4]} 20. Rf1 {[%clk 0:02:31.7]} 20... Qd6 {[%clk
0:02:40.7]} 21. h3 {[%clk 0:02:32.3]} 21... b5 {[%clk 0:02:39.2]} 22. f5 {[%clk
0:02:18.5]} 22... Bf7 {[%clk 0:02:39.8]} 23. g4 {[%clk 0:02:20.4]} 23... c4
{[%clk 0:02:38.2]} 24. Rf2 {[%clk 0:02:17]} 24... Rac8 {[%clk 0:02:35.4]} 25.
dxc4 {[%clk 0:02:17.3]} 25... Rxc4 {[%clk 0:02:31.9]} 26. Rxc4 {[%clk
0:02:17.8]} 26... bxc4 {[%clk 0:02:31]} 27. Bc3 {[%clk 0:02:12.2]} 27... Rb8
{[%clk 0:02:29.1]} 28. Bb4 {[%clk 0:02:12.8]} 28... Qc6 {[%clk 0:02:25.5]} 29.
Bc2 {[%clk 0:02:03.2]} 29... Rd8 {[%clk 0:02:20.3]} 30. Qe3 {[%clk 0:01:59.5]}
30... Qb6 {[%clk 0:01:48.3]} 31. Bd1 {[%clk 0:01:56.8]} 31... a5 {[%clk
0:01:46.4]} 32. Bc3 {[%clk 0:01:49]} 32... Qc5 {[%clk 0:01:47]} 33. Rd2 {[%clk
0:01:44.8]} 33... Nf3+ {[%clk 0:01:31.1]} 34. Kf2 {[%clk 0:01:42.6]} 34... Qxe3+
{[%clk 0:01:24.7]} 35. Kxe3 {[%clk 0:01:44.5]} 35... Nxd2 {[%clk 0:01:25.8]} 36.
Bxd2 {[%clk 0:01:46.3]} 36... c3 {[%clk 0:01:26.8]} 0-1